[Event "GER-ch Youth U12 2019"]
[Site "Willingen"]
[Date "2019.06.11"]
[Round "4.1"]
[White "Kluehs, Gustaf"]
[Black "Sosa Costa, Leonardo"]
[Result "1-0"]
[ECO "A05"]
[WhiteElo "1705"]
[BlackElo "1945"]
[Annotator "NA"]
[PlyCount "57"]
[EventDate "2019.06.07"]
[EventType "swiss"]
[EventRounds "9"]
[EventCountry "GER"]
[SourceTitle "playchess.com"]
[Source "ChessBase"]
[SourceQuality "1"]
[TimeControl "40/4500+30:900+30"]

1. Nf3 {[%emt 0:00:00]} Nf6 {[%emt 0:00:00]} 2. g3 {[%emt 0:00:00]} g6 {[%emt 0:00:00]} 3. Bg2 {[%emt 0:00:00]} Bg7 {[%emt 0:00:00]} 4. O-O {[%emt 0:00:00]} O-O {[%emt 0:00:00]} 5. c4 {[%emt 0:00:00]} d6 {[%emt 0:00:00]} 6. Nc3 {[%emt 0:00:00]} c6 {[%emt 0:00:00]} 7. b3 {[%emt 0:00:00]} e5 {[%emt 0:00:00]} 8. Bb2 {[%emt 0:00:00]} Re8 {[%emt 0:07:19]} 9. Rc1 {[%emt 0:01:07]} a5 {[%emt 0:05:40]} 10. d3 {[%emt 0:09:46]} Na6 {[%emt 0:05:03]} 11. Nd2 {[%emt 0:07:57]} d5 {[%emt 0:06:00]} 12. cxd5 {[%emt 0:10:05]} cxd5 {[%emt 0:01:01]} 13. a3 {[%emt 0:02:23]} Qd6 {[%emt 0:06:28]} 14. e4 {[%emt 0:06:42]} d4 {[%emt 0:22:31]} 15. Nc4 {[%emt 0:03:54]} Qd8 {[%emt 0:00:34]} 16. Nb5 {[%emt 0:01:14]} Nd7 {[%emt 0:06:45]} 17. a4 {[%emt 0:02:51]} b6 {[%emt 0:03:15]} 18. Ba3 {[%emt 0:00:17]} Bf8 {[%emt 0:00:32]} 19. Bxf8 {[%emt 0:01:45]} Rxf8 {[%emt 0:00:50]} 20. f4 {[%emt 0:01:56]} f6 {[%emt 0:02:36]} 21. Bh3 {[%emt 0:05:18]} exf4 {[%emt 0:02:21]} 22. Be6+ {[%emt 0:01:45]} Kg7 {[%emt 0:00:20]} 23. Bd5 {[%emt 0:00:31]} Rb8 {[%emt 0:03:48]} 24. Nxd4 {[%emt 0:00:10]} Ne5 {[%emt 0:00:10]} 25. Nxe5 {[%emt 0:00:15]} fxe5 {[%emt 0:00:09]} 26. Nc6 {[%emt 0:00:25]} Qg5 {[%emt 0:00:30]} 27. Nxb8 {[%emt 0:00:24]} Nxb8 {[%emt 0:01:04]} 28. Rc7+ {[%emt 0:00:26]} Kh8 {[%emt 0:01:10]} 29. Qc1 {[%emt 0:01:17] normal} 1-0

[Event "GER-ch Youth U12 2019"]
[Site "Willingen"]
[Date "2019.06.11"]
[Round "4.2"]
[White "Bungarten, Jona"]
[Black "Foerster-Yialamas, Lucas"]
[Result "0-1"]
[ECO "B21"]
[WhiteElo "1642"]
[BlackElo "1981"]
[Annotator "NA"]
[PlyCount "114"]
[EventDate "2019.06.07"]
[EventType "swiss"]
[EventRounds "9"]
[EventCountry "GER"]
[SourceTitle "playchess.com"]
[Source "ChessBase"]
[SourceQuality "1"]
[TimeControl "40/4500+30:900+30"]

1. e4 {[%emt 0:00:00]} c5 {[%emt 0:00:00]} 2. d4 {[%emt 0:00:00]} cxd4 {[%emt 0:00:00]} 3. c3 {[%emt 0:00:00]} dxc3 {[%emt 0:00:00]} 4. Nxc3 {[%emt 0:00:00]} Nc6 {[%emt 0:00:00]} 5. Nf3 {[%emt 0:00:00]} d6 {[%emt 0:00:00]} 6. Bc4 {[%emt 0:00:00]} e6 {[%emt 0:00:00]} 7. O-O {[%emt 0:00:00]} Be7 {[%emt 0:00:00]} 8. Bf4 {[%emt 0:00:00]} e5 {[%emt 0:00:00]} 9. Be3 {[%emt 0:00:00]} Nf6 {[%emt 0:00:00]} 10. h3 {[%emt 0:00:00]} O-O {[%emt 0:00:00]} 11. Qe2 {[%emt 0:00:00]} Be6 {[%emt 0:00:00]} 12. Rfd1 {[%emt 0:00:00]} Bxc4 {[%emt 0:00:00]} 13. Qxc4 {[%emt 0:00:00]} Rc8 {[%emt 0:00:00]} 14. Qa4 {[%emt 0:00:00]} Qa5 {[%emt 0:04:50]} 15. Qxa5 {[%emt 0:01:15]} Nxa5 {[%emt 0:00:08]} 16. Bxa7 {[%emt 0:00:44]} Nc4 {[%emt 0:00:11]} 17. Nd5 {[%emt 0:03:31]} Nxd5 {[%emt 0:00:31]} 18. Rxd5 {[%emt 0:00:15]} Ra8 {[%emt 0:07:12]} 19. Be3 {[%emt 0:09:39]} Nxe3 {[%emt 0:00:12]} 20. fxe3 {[%emt 0:00:09]} Ra4 {[%emt 0:01:32]} 21. Rb5 {[%emt 0:00:57]} Rb8 {[%emt 0:00:33]} 22. b4 {[%emt 0:01:46]} Ra3 {[%emt 0:01:32]} 23. Rc1 {[%emt 0:05:19]} Rxa2 {[%emt 0:03:13]} 24. Rc7 {[%emt 0:00:24]} Bf8 {[%emt 0:00:04]} 25. Kf1 {[%emt 0:02:26]} Rb2 {[%emt 0:01:33]} 26. Rbxb7 {[%emt 0:06:34]} Rxb4 {[%emt 0:01:03]} 27. Rxb8 {[%emt 0:00:51]} Rxb8 {[%emt 0:00:04]} 28. Nd2 {[%emt 0:00:21]} g6 {[%emt 0:01:39]} 29. Ke2 {[%emt 0:01:09]} Kg7 {[%emt 0:01:52]} 30. Nc4 {[%emt 0:01:14]} Kf6 {[%emt 0:01:04]} 31. Rc6 {[%emt 0:01:06]} Ke6 {[%emt 0:00:49]} 32. g4 {[%emt 0:01:38]} Rb1 {[%emt 0:01:08]} 33. Rc8 {[%emt 0:03:49]} Be7 {[%emt 0:01:31]} 34. Rh8 {[%emt 0:00:42]} d5 {[%emt 0:01:02]} 35. exd5+ {[%emt 0:01:34]} Kxd5 {[%emt 0:00:09]} 36. Nd2 {[%emt 0:00:26]} Rb2 {[%emt 0:00:31]} 37. Kd1 {[%emt 0:07:18]} Bb4 {[%emt 0:04:40]} 38. Rd8+ {[%emt 0:00:17]} Ke6 {[%emt 0:00:09]} 39. Ne4 {[%emt 0:00:42]} f5 {[%emt 0:08:46]} 40. gxf5+ Kxf5 {[%emt 0:02:09]} 41. Ng3+ {[%emt 0:18:09]} Ke6 {[%emt 0:16:19]} 42. Ne4 {[%emt 0:01:42]} Be7 {[%emt 0:01:19]} 43. Re8 {[%emt 0:02:45]} Rh2 {[%emt 0:01:02]} 44. Ke1 {[%emt 0:04:23]} Kf7 {[%emt 0:01:37]} 45. Ra8 {[%emt 0:01:47]} Rxh3 {[%emt 0:00:14]} 46. Kf2 {[%emt 0:00:07]} h6 {[%emt 0:03:20]} 47. Ra5 {[%emt 0:00:42]} Rh5 {[%emt 0:01:03]} 48. Kf3 {[%emt 0:00:54]} Rf5+ {[%emt 0:00:55]} 49. Kg3 {[%emt 0:00:45]} h5 {[%emt 0:01:30]} 50. Ra7 {[%emt 0:02:21]} h4+ {[%emt 0:02:50]} 51. Kg4 {[%emt 0:00:29]} Rh5 {[%emt 0:00:18]} 52. Kh3 {[%emt 0:00:58]} Ke6 {[%emt 0:03:26]} 53. Ra6+ {[%emt 0:00:54]} Kf5 {[%emt 0:02:37]} 54. Nf2 {[%emt 0:00:15]} Rg5 {[%emt 0:00:22]} 55. Kh2 {[%emt 0:01:21]} Rg3 {[%emt 0:01:41]} 56. e4+ {[%emt 0:01:48]} Kf4 {[%emt 0:02:24]} 57. Ra1 {[%emt 0:01:05]} Ke3 {[%emt 0:02:07] normal} 0-1

[Event "GER-ch Youth U12 2019"]
[Site "Willingen"]
[Date "2019.06.11"]
[Round "4.3"]
[White "Bakiev, Diyor"]
[Black "Ohler, Julius"]
[Result "1-0"]
[ECO "C02"]
[WhiteElo "2123"]
[BlackElo "1837"]
[Annotator "ChessBase"]
[PlyCount "35"]
[EventDate "2019.06.07"]
[EventType "swiss"]
[EventRounds "9"]
[EventCountry "GER"]
[SourceTitle "playchess.com"]
[Source "ChessBase"]
[SourceQuality "1"]
[TimeControl "40/4500+30:900+30"]

1. e4 {[%emt 0:00:00]} e6 {[%emt 0:00:00]} 2. d4 {[%emt 0:00:00]} d5 {[%emt 0:00:00]} 3. e5 {[%emt 0:00:00]} c5 {[%emt 0:00:00]} 4. c3 {[%emt 0:00:00]} Nc6 {[%emt 0:00:00]} 5. Nf3 {[%emt 0:00:00]} Bd7 {[%emt 0:00:00]} 6. Be2 {[%emt 0:00:00]} cxd4 {[%emt 0:00:00]} 7. cxd4 {[%emt 0:00:00]} Qb6 {[%emt 0:00:00]} 8. O-O {[%emt 0:00:00]} Nge7 {[%emt 0:00:00]} 9. Na3 {[%emt 0:00:00]} Nf5 {[%emt 0:00:00]} 10. Nc2 {[%emt 0:00:00]} Be7 {[%emt 0:00:00]} 11. Bd3 {[%emt 0:00:00]} Nfxd4 {[%emt 0:00:00]} 12. Nfxd4 {[%emt 0:00:00]} Nxd4 {[%emt 0:00:00]} 13. Be3 {[%emt 0:00:00]} Bc5 {[%emt 0:00:00]} 14. b4 {[%emt 0:00:00]} Nxc2 {[%emt 0:02:32]} 15. Bxc5 {[%emt 0:00:00]} Qxc5 {[%emt 0:01:13]} 16. bxc5 {[%emt 0:00:00]} Nxa1 {[%emt 0:00:06]} 17. Qxa1 {[%emt 0:00:00]} O-O {[%emt 0:00:21]} 18. Qb1 {[%emt 0:00:00] normal} 1-0

[Event "GER-ch Youth U12 2019"]
[Site "Willingen"]
[Date "2019.06.11"]
[Round "4.4"]
[White "Stork, Christopher"]
[Black "Freude, Max"]
[Result "1/2-1/2"]
[ECO "C42"]
[WhiteElo "1817"]
[BlackElo "1707"]
[Annotator "NA"]
[PlyCount "67"]
[EventDate "2019.06.07"]
[EventType "swiss"]
[EventRounds "9"]
[EventCountry "GER"]
[SourceTitle "playchess.com"]
[Source "ChessBase"]
[SourceQuality "1"]
[TimeControl "40/4500+30:900+30"]

1. e4 {[%emt 0:00:00]} e5 {[%emt 0:00:00]} 2. Nf3 {[%emt 0:00:00]} Nf6 {[%emt 0:00:00]} 3. Nc3 {[%emt 0:00:00]} Bb4 {[%emt 0:00:00]} 4. Nxe5 {[%emt 0:00:00]} O-O {[%emt 0:00:00]} 5. Nd3 {[%emt 0:00:00]} Bxc3 {[%emt 0:00:00]} 6. dxc3 {[%emt 0:00:00]} Nxe4 {[%emt 0:00:00]} 7. Be2 {[%emt 0:00:00]} d5 {[%emt 0:00:00]} 8. O-O {[%emt 0:00:00]} b6 {[%emt 0:00:00]} 9. Be3 {[%emt 0:00:00]} Bb7 {[%emt 0:00:00]} 10. Nf4 {[%emt 0:00:00]} c5 {[%emt 0:05:56]} 11. f3 {[%emt 0:06:25]} Nf6 {[%emt 0:02:12]} 12. Qd2 {[%emt 0:00:16]} Qe7 {[%emt 0:04:01]} 13. Rfe1 {[%emt 0:01:24]} Rd8 {[%emt 0:04:11]} 14. Rad1 {[%emt 0:03:25]} Nc6 {[%emt 0:02:26]} 15. Bf2 {[%emt 0:00:56]} Qd7 {[%emt 0:05:55]} 16. c4 {[%emt 0:04:18]} dxc4 {[%emt 0:04:19]} 17. Qxd7 {[%emt 0:01:28]} Rxd7 {[%emt 0:00:21]} 18. Rxd7 {[%emt 0:02:14]} Nxd7 {[%emt 0:04:33]} 19. Bxc4 {[%emt 0:00:09]} Nde5 {[%emt 0:01:08]} 20. Bd5 {[%emt 0:00:30]} Rd8 {[%emt 0:01:46]} 21. Bh4 {[%emt 0:03:07]} Rb8 {[%emt 0:07:05]} 22. Nh3 {[%emt 0:09:01]} Ng6 {[%emt 0:06:11]} 23. Bg3 {[%emt 0:00:32]} Rd8 {[%emt 0:01:07]} 24. c4 {[%emt 0:00:57]} h6 {[%emt 0:02:25]} 25. f4 {[%emt 0:01:14]} Ba8 {[%emt 0:02:52]} 26. f5 {[%emt 0:01:13]} Nf8 {[%emt 0:04:28]} 27. b3 {[%emt 0:05:34]} Nd4 {[%emt 0:03:23]} 28. Bxa8 {[%emt 0:01:21]} Rxa8 {[%emt 0:00:09]} 29. f6 {[%emt 0:00:31]} gxf6 {[%emt 0:06:16]} 30. Nf4 {[%emt 0:00:39]} Nfe6 {[%emt 0:01:43]} 31. Nd5 {[%emt 0:00:21]} f5 {[%emt 0:00:54]} 32. Be5 {[%emt 0:01:25]} Kf8 {[%emt 0:04:56]} 33. Bd6+ {[%emt 0:00:59]} Kg7 {[%emt 0:00:51]} 34. Re3 {normal} 1/2-1/2

[Event "GER-ch Youth U12 2019"]
[Site "Willingen"]
[Date "2019.06.11"]
[Round "4.5"]
[White "Hagner, Bennet"]
[Black "Schwartz, Oliver"]
[Result "1/2-1/2"]
[ECO "B35"]
[WhiteElo "1900"]
[BlackElo "1616"]
[Annotator "NA"]
[PlyCount "120"]
[EventDate "2019.06.07"]
[EventType "swiss"]
[EventRounds "9"]
[EventCountry "GER"]
[SourceTitle "playchess.com"]
[Source "ChessBase"]
[SourceQuality "1"]
[TimeControl "40/4500+30:900+30"]

1. e4 {[%emt 0:00:00]} c5 {[%emt 0:00:00]} 2. Nf3 {[%emt 0:00:00]} Nc6 {[%emt 0:00:00]} 3. d4 {[%emt 0:00:00]} cxd4 {[%emt 0:00:00]} 4. Nxd4 {[%emt 0:00:00]} g6 {[%emt 0:00:00]} 5. Nc3 {[%emt 0:00:00]} Bg7 {[%emt 0:00:00]} 6. Be3 {[%emt 0:00:00]} Nf6 {[%emt 0:00:00]} 7. Bc4 {[%emt 0:00:00]} O-O {[%emt 0:00:00]} 8. Bb3 {[%emt 0:00:00]} d6 {[%emt 0:00:00]} 9. f3 {[%emt 0:00:00]} Bd7 {[%emt 0:00:00]} 10. Qd2 {[%emt 0:00:00]} Rc8 {[%emt 0:00:00]} 11. h4 {[%emt 0:00:00]} Ne5 {[%emt 0:00:16]} 12. h5 {[%emt 0:00:00]} Nc4 {[%emt 0:17:19]} 13. Bxc4 {[%emt 0:00:00]} Rxc4 {[%emt 0:00:13]} 14. hxg6 {[%emt 0:00:00]} fxg6 {[%emt 0:03:14]} 15. O-O-O {[%emt 0:00:13]} a6 {[%emt 0:03:07]} 16. Kb1 {[%emt 0:07:58]} b5 {[%emt 0:03:11]} 17. Nde2 {[%emt 0:05:18]} Be6 {[%emt 0:15:29]} 18. e5 {[%emt 0:04:07]} Ne8 {[%emt 0:00:47]} 19. exd6 {[%emt 0:00:46]} Qxd6 {[%emt 0:02:43]} 20. Bh6 {[%emt 0:09:50]} Qxd2 {[%emt 0:02:20]} 21. Rxd2 {[%emt 0:00:07]} Nd6 {[%emt 0:01:41]} 22. Bxg7 {[%emt 0:02:35]} Kxg7 {[%emt 0:00:09]} 23. Nd4 {[%emt 0:04:02]} Bg8 {[%emt 0:05:41]} 24. Re1 {[%emt 0:01:07]} Re8 {[%emt 0:02:56]} 25. Ne6+ {[%emt 0:02:39]} Bxe6 {[%emt 0:04:54]} 26. Rxe6 {[%emt 0:00:10]} Kf7 {[%emt 0:00:07]} 27. Rde2 {[%emt 0:00:33]} a5 {[%emt 0:01:17]} 28. Kc1 {[%emt 0:03:02]} Rc5 {[%emt 0:02:38]} 29. R6e5 {[%emt 0:13:44]} Rxe5 {[%emt 0:03:53]} 30. Rxe5 {[%emt 0:00:13]} Rb8 {[%emt 0:00:11]} 31. a4 {[%emt 0:02:17]} b4 {[%emt 0:01:54]} 32. Nd5 {[%emt 0:05:31]} Rb7 {[%emt 0:01:54]} 33. b3 {[%emt 0:01:34]} Nf5 {[%emt 0:01:21]} 34. Kd2 {[%emt 0:01:34]} Rd7 {[%emt 0:00:59]} 35. Ke2 {[%emt 0:08:46]} e6 {[%emt 0:06:04]} 36. Nb6 {[%emt 0:03:07]} Ra7 {[%emt 0:02:14]} 37. f4 {[%emt 0:04:07]} Nd4+ {[%emt 0:01:40]} 38. Kd3 {[%emt 0:00:23]} Nc6 {[%emt 0:00:23]} 39. Rc5 {[%emt 0:00:55]} Nd8 {[%emt 0:01:05]} 40. Nc4 {[%emt 0:03:14]} Kf6 {[%emt 0:01:09]} 41. Rxa5 {[%emt 0:18:41]} Rd7+ {[%emt 0:16:10]} 42. Ke4 {[%emt 0:01:02]} Nc6 {[%emt 0:00:51]} 43. Rc5 {[%emt 0:01:06]} Ne7 {[%emt 0:03:00]} 44. a5 {[%emt 0:01:16]} Nd5 {[%emt 0:00:00]} 45. Ne5 {[%emt 0:00:00]} Rd6 {[%emt 0:00:00]} 46. Rc6 {[%emt 0:00:00]} Nc3+ {[%emt 0:00:00]} 47. Kf3 {[%emt 0:00:00]} Rd1 {[%emt 0:00:00]} 48. a6 {[%emt 0:00:00]} Rf1+ {[%emt 0:00:00]} 49. Ke3 {[%emt 0:00:00]} Nd5+ {[%emt 0:00:00]} 50. Ke2 {[%emt 0:00:00]} Ra1 {[%emt 0:00:00]} 51. g3 {[%emt 0:00:00]} Kf5 {[%emt 0:00:00]} 52. Nf3 {[%emt 0:00:00]} Nc3+ {[%emt 0:00:00]} 53. Kd3 {[%emt 0:00:00]} Kg4 {[%emt 0:00:00]} 54. Ng5 {[%emt 0:00:00]} Kxg3 {[%emt 0:00:00]} 55. Nxh7 {[%emt 0:00:00]} Kxf4 {[%emt 0:00:00]} 56. Rxe6 {[%emt 0:00:00]} g5 {[%emt 0:00:00]} 57. Kc4 {[%emt 0:00:00]} g4 {[%emt 0:00:00]} 58. Kxb4 {[%emt 0:00:00]} Nd5+ {[%emt 0:00:00]} 59. Kc5 {[%emt 0:00:00]} Nc7 {[%emt 0:00:00]} 60. Rf6+ {[%emt 0:00:00]} Ke3 {[%emt 0:00:00] normal} 1/2-1/2

[Event "GER-ch Youth U12 2019"]
[Site "Willingen"]
[Date "2019.06.11"]
[Round "4.6"]
[White "Metzdorf, Matteo"]
[Black "Mueller, Maximilian"]
[Result "1-0"]
[ECO "C10"]
[WhiteElo "1859"]
[BlackElo "1606"]
[Annotator "NA"]
[PlyCount "77"]
[EventDate "2019.06.07"]
[EventType "swiss"]
[EventRounds "9"]
[EventCountry "GER"]
[SourceTitle "playchess.com"]
[Source "ChessBase"]
[SourceQuality "1"]
[TimeControl "40/4500+30:900+30"]

1. e4 {[%emt 0:00:00]} e6 {[%emt 0:00:00]} 2. d4 {[%emt 0:00:00]} d5 {[%emt 0:00:00]} 3. Nc3 {[%emt 0:00:00]} Nc6 {[%emt 0:00:00]} 4. Nf3 {[%emt 0:00:00]} Nf6 {[%emt 0:00:00]} 5. e5 {[%emt 0:00:00]} Ne4 {[%emt 0:00:00]} 6. Ne2 {[%emt 0:00:00]} f6 {[%emt 0:00:00]} 7. Ng3 {[%emt 0:00:00]} fxe5 {[%emt 0:00:00]} 8. Bb5 {[%emt 0:00:00]} Bd6 {[%emt 0:05:02]} 9. Nxe4 {[%emt 0:04:41]} dxe4 {[%emt 0:00:24]} 10. Nxe5 {[%emt 0:00:19]} Bxe5 {[%emt 0:01:14]} 11. Bxc6+ {[%emt 0:00:22]} bxc6 {[%emt 0:00:34]} 12. Qh5+ {[%emt 0:00:59]} g6 {[%emt 0:03:23]} 13. Qxe5 {[%emt 0:00:54]} O-O {[%emt 0:00:07]} 14. Qxe4 {[%emt 0:13:00]} Qd5 {[%emt 0:02:40]} 15. Qxd5 {[%emt 0:08:35]} cxd5 {[%emt 0:00:10]} 16. Be3 {[%emt 0:00:47]} Bd7 {[%emt 0:00:33]} 17. O-O-O {[%emt 0:02:54]} a5 {[%emt 0:01:20]} 18. b3 {[%emt 0:10:24]} a4 {[%emt 0:00:51]} 19. h4 {[%emt 0:12:57]} Be8 {[%emt 0:01:24]} 20. f4 {[%emt 0:05:03]} axb3 {[%emt 0:00:24]} 21. axb3 {[%emt 0:00:10]} Ra1+ {[%emt 0:02:29]} 22. Kb2 {[%emt 0:01:12]} Rxd1 {[%emt 0:00:09]} 23. Rxd1 {[%emt 0:00:09]} Bd7 {[%emt 0:01:50]} 24. Ra1 {[%emt 0:01:26]} c6 {[%emt 0:05:28]} 25. Ra7 Be8 26. Bd2 {[%emt 0:02:54]} Bf7 {[%emt 0:12:40]} 27. Rc7 {[%emt 0:00:55]} Rb8 {[%emt 0:00:55]} 28. Rxc6 {[%emt 0:00:54]} Kg7 {[%emt 0:00:30]} 29. Rc7 {[%emt 0:07:57]} Kg8 {[%emt 0:03:36]} 30. Ba5 {[%emt 0:00:30]} Rb5 {[%emt 0:03:55]} 31. Rc8+ {[%emt 0:01:55]} Kg7 {[%emt 0:01:04]} 32. Bc7 {[%emt 0:00:17]} Rb7 33. Be5+ Kh6 {[%emt 0:01:10]} 34. Rc7 {[%emt 0:01:49]} Rxc7 {[%emt 0:00:37]} 35. Bxc7 {[%emt 0:00:06]} Kg7 36. Ka3 {[%emt 0:00:53]} Kf8 {[%emt 0:02:14]} 37. Kb4 {[%emt 0:01:15]} Be8 {[%emt 0:09:00]} 38. Bd6+ {[%emt 0:00:30]} Kf7 {[%emt 0:00:13]} 39. Bc5 {[%emt 0:00:00] normal} 1-0

[Event "GER-ch Youth U12 2019"]
[Site "Willingen"]
[Date "2019.06.11"]
[Round "4.7"]
[White "Woltmann, Peter"]
[Black "Breitkopf-Lazar, Patrick-Robert"]
[Result "1-0"]
[ECO "C55"]
[WhiteElo "1471"]
[BlackElo "1659"]
[Annotator "NA"]
[PlyCount "61"]
[EventDate "2019.06.07"]
[EventType "swiss"]
[EventRounds "9"]
[EventCountry "GER"]
[SourceTitle "playchess.com"]
[Source "ChessBase"]
[SourceQuality "1"]
[TimeControl "40/4500+30:900+30"]

1. e4 {[%emt 0:00:00]} e5 {[%emt 0:00:00]} 2. Nf3 {[%emt 0:00:00]} Nc6 {[%emt 0:00:00]} 3. d4 {[%emt 0:00:00]} exd4 {[%emt 0:00:00]} 4. Bc4 {[%emt 0:00:00]} Bc5 {[%emt 0:00:00]} 5. O-O {[%emt 0:00:00]} Nf6 {[%emt 0:00:00]} 6. e5 {[%emt 0:00:00]} d5 {[%emt 0:00:00]} 7. exf6 {[%emt 0:00:00]} dxc4 {[%emt 0:00:00]} 8. fxg7 {[%emt 0:00:00]} Rg8 {[%emt 0:00:00]} 9. Re1+ {[%emt 0:00:00]} Be6 {[%emt 0:00:00]} 10. Bg5 {[%emt 0:00:00]} Be7 {[%emt 0:00:00]} 11. Bxe7 {[%emt 0:00:00]} Kxe7 {[%emt 0:00:00]} 12. Nbd2 {[%emt 0:00:00]} Qd5 {[%emt 0:00:00]} 13. Nh4 {[%emt 0:00:00]} Kd7 {[%emt 0:05:11]} 14. Ne4 {[%emt 0:00:00]} Qe5 {[%emt 0:06:07]} 15. Qf3 {[%emt 0:00:00]} Qxg7 {[%emt 0:04:51]} 16. Nf6+ {[%emt 0:00:00]} Kd6 {[%emt 0:03:39]} 17. Nxg8 {[%emt 0:00:00]} Rxg8 {[%emt 0:00:05]} 18. g3 {[%emt 0:00:00]} Qg5 {[%emt 0:03:11]} 19. Ng2 {[%emt 0:02:19]} Ne5 {[%emt 0:17:45]} 20. Qa3+ {[%emt 0:02:32]} c5 {[%emt 0:03:38]} 21. f4 {[%emt 0:00:35]} Qg4 {[%emt 0:00:10]} 22. fxe5+ {[%emt 0:00:12]} Kc6 {[%emt 0:00:16]} 23. Rf1 {[%emt 0:02:22]} Bd5 {[%emt 0:07:17]} 24. Rf6+ {[%emt 0:02:52]} Kc7 {[%emt 0:04:37]} 25. Qxc5+ {[%emt 0:00:33]} Bc6 {[%emt 0:00:12]} 26. Nf4 {[%emt 0:01:08]} Qh4 {[%emt 0:01:45]} 27. Nd5+ {[%emt 0:00:33]} Kb8 {[%emt 0:00:40]} 28. Qd6+ {[%emt 0:00:19]} Ka8 {[%emt 0:00:50]} 29. Nc7+ {[%emt 0:00:08]} Kb8 {[%emt 0:00:06]} 30. Na6+ {[%emt 0:00:02]} Ka8 {[%emt 0:00:07]} 31. Qb8+ {[%emt 0:00:02] normal} 1-0

[Event "GER-ch Youth U12 2019"]
[Site "Willingen"]
[Date "2019.06.11"]
[Round "4.9"]
[White "Guo, Philipp Ziming"]
[Black "Tomasjan, Samuel"]
[Result "0-1"]
[ECO "C01"]
[WhiteElo "1674"]
[BlackElo "1476"]
[Annotator "NA"]
[PlyCount "41"]
[EventDate "2019.06.07"]
[EventType "swiss"]
[EventRounds "9"]
[EventCountry "GER"]
[SourceTitle "playchess.com"]
[Source "ChessBase"]
[SourceQuality "1"]
[TimeControl "40/4500+30:900+30"]

1. e4 {[%emt 0:00:00]} e6 {[%emt 0:00:00]} 2. d4 {[%emt 0:00:00]} d5 {[%emt 0:00:00]} 3. exd5 {[%emt 0:00:00]} exd5 {[%emt 0:00:00]} 4. Bd3 {[%emt 0:00:00]} Bd6 {[%emt 0:00:00]} 5. Ne2 {[%emt 0:00:00]} Nf6 {[%emt 0:00:00]} 6. O-O {[%emt 0:00:00]} c6 {[%emt 0:00:00]} 7. c3 {[%emt 0:00:00]} Qc7 {[%emt 0:02:35]} 8. h3 {[%emt 0:01:23]} Be6 {[%emt 0:00:49]} 9. Be3 {[%emt 0:02:58]} Nbd7 {[%emt 0:05:55]} 10. Qd2 {[%emt 0:07:06]} Rg8 {[%emt 0:20:45]} 11. Bf4 {[%emt 0:05:35]} g5 {[%emt 0:11:28]} 12. Bxd6 {[%emt 0:03:14]} Qxd6 {[%emt 0:00:38]} 13. Ng3 {[%emt 0:02:21]} h5 {[%emt 0:01:35]} 14. Nf5 {[%emt 0:09:16]} Bxf5 {[%emt 0:01:52]} 15. Bxf5 {[%emt 0:01:18]} O-O-O {[%emt 0:01:15]} 16. Na3 {[%emt 0:06:11]} h4 {[%emt 0:03:20]} 17. f3 {[%emt 0:01:43]} Nh5 {[%emt 0:01:04]} 18. Rfe1 {[%emt 0:04:09]} Ng3 {[%emt 0:02:30]} 19. Qd3 {[%emt 0:04:43]} Kb8 {[%emt 0:03:06]} 20. Nc2 {[%emt 0:08:04]} Nf6 {[%emt 0:02:09]} 21. Re5 {[%emt 0:03:05] normal} 0-1

[Event "GER-ch Youth U12 2019"]
[Site "Willingen"]
[Date "2019.06.11"]
[Round "4.10"]
[White "von Mettenheim, Johannes"]
[Black "Schreidl, Michael"]
[Result "1-0"]
[ECO "D56"]
[WhiteElo "1757"]
[BlackElo "1586"]
[Annotator "NA"]
[PlyCount "77"]
[EventDate "2019.06.07"]
[EventType "swiss"]
[EventRounds "9"]
[EventCountry "GER"]
[SourceTitle "playchess.com"]
[Source "ChessBase"]
[SourceQuality "1"]
[TimeControl "40/4500+30:900+30"]

1. d4 {[%emt 0:00:00]} d5 {[%emt 0:00:00]} 2. c4 {[%emt 0:00:00]} e6 {[%emt 0:00:00]} 3. Nc3 {[%emt 0:00:00]} Nf6 {[%emt 0:00:00]} 4. Bg5 {[%emt 0:00:00]} Be7 {[%emt 0:00:00]} 5. e3 {[%emt 0:00:00]} h6 {[%emt 0:00:00]} 6. Bh4 {[%emt 0:00:00]} O-O {[%emt 0:00:00]} 7. Nf3 {[%emt 0:00:00]} Ne4 {[%emt 0:00:00]} 8. Bxe7 {[%emt 0:00:00]} Qxe7 {[%emt 0:00:00]} 9. Qc2 {[%emt 0:00:00]} Nxc3 {[%emt 0:00:00]} 10. Qxc3 {[%emt 0:00:00]} c6 {[%emt 0:00:00]} 11. Bd3 {[%emt 0:00:00]} Nd7 {[%emt 0:00:00]} 12. O-O {[%emt 0:00:00]} dxc4 {[%emt 0:00:00]} 13. Bxc4 {[%emt 0:00:00]} b6 {[%emt 0:00:00]} 14. b4 {[%emt 0:00:00]} Bb7 {[%emt 0:00:00]} 15. Be2 {[%emt 0:02:21]} c5 {[%emt 0:02:53]} 16. dxc5 {[%emt 0:01:23]} bxc5 {[%emt 0:00:13]} 17. b5 {[%emt 0:00:19]} Rac8 {[%emt 0:01:55]} 18. Qa3 {[%emt 0:02:34]} Rc7 {[%emt 0:03:08]} 19. Rfd1 {[%emt 0:12:40]} Bd5 {[%emt 0:01:43]} 20. Nd2 {[%emt 0:02:44]} Qg5 {[%emt 0:13:12]} 21. e4 {[%emt 0:00:30]} Ba8 {[%emt 0:01:02]} 22. Qg3 {[%emt 0:06:35]} Qxg3 {[%emt 0:00:37]} 23. hxg3 {[%emt 0:00:49]} Nf6 {[%emt 0:00:46]} 24. f3 {[%emt 0:00:15]} Rfc8 {[%emt 0:01:37]} 25. Nc4 {[%emt 0:00:32]} Nd7 {[%emt 0:02:17]} 26. Rd6 {[%emt 0:01:36]} Nf6 {[%emt 0:06:28]} 27. Rad1 {[%emt 0:01:46]} Ne8 {[%emt 0:00:38]} 28. Rd7 {[%emt 0:01:23]} Kf8 {[%emt 0:00:55]} 29. Ne5 {[%emt 0:04:03]} Rxd7 {[%emt 0:00:52]} 30. Rxd7 {[%emt 0:00:16]} Rc7 {[%emt 0:00:21]} 31. a4 {[%emt 0:01:30]} f6 {[%emt 0:07:00]} 32. Ng6+ {[%emt 0:01:02]} Kg8 {[%emt 0:00:42]} 33. Rd8 {[%emt 0:00:02]} Kf7 {[%emt 0:00:54]} 34. Rxa8 {[%emt 0:00:09]} c4 {[%emt 0:00:18]} 35. Nf4 {[%emt 0:04:31]} c3 {[%emt 0:00:30]} 36. Nd3 {[%emt 0:00:11]} c2 {[%emt 0:00:05]} 37. Kf2 {[%emt 0:00:26]} Rd7 {[%emt 0:00:10] normal} 38. Rc8 {[%emt 0:00:52]} Nc7 {[%emt 0:03:17]} 39. Nc1 {[%emt 0:00:14] normal} 1-0